bitfinex/quotes_ETHUSD_20250505
["timestamp","ask_amount","ask_price","bid_price","bid_amount"]
[1746453676380,0.9156347,1818.3,1818.0,5.50039031]
[1746453676881,0.9156347,1818.3,1817.7,5.50139155]
[1746453677086,0.9156347,1818.3,1818.0,5.50032717]
[1746453677264,0.9156347,1818.3,1818.1,5.50005408]
[1746453677601,8.74462504,1818.3,1817.5,0.0550058]
[1746453677756,8.70345284,1818.0,1817.8,5.50103955]
[1746453678085,0.0411722,1817.9,1817.8,5.50115524]
[1746453678248,8.74462504,1818.3,1818.0,5.50037865]
[1746453678451,0.0411722,1818.3,1818.2,5.499945]
[1746453678756,18.195,1818.9,1818.3,5.49936875]
[1746453678757,0.0411722,1818.4,1818.3,5.49936875]
[1746453679172,8.70345284,1819.0,1818.5,5.49890058]
[1746453679483,3.0,1818.9,1817.9,11.87763213]
[1746453679784,8.70345284,1818.7,1818.2,5.49980697]
[1746453679948,0.87034528,1818.6,1818.4,5.49933101]
[1746453680149,0.87034528,1818.6,1818.3,5.49942705]
[1746453680654,0.87034528,1818.6,1817.7,5.50145788]
[1746453680851,8.70345284,1818.7,1818.4,5.49911633]
[1746453681162,0.42307542,1819.0,1818.7,5.49829399]
[1746453681163,9.12652826,1819.0,1818.7,5.49829399]
[1746453681358,8.70345284,1819.3,1818.9,5.49762989]
[1746453681697,15.08045284,1819.3,1819.0,5.49738304]
[1746453681860,6.377,1819.3,1819.1,5.49695619]
[1746453682197,0.40677305,1819.6,1819.4,5.49605619]
[1746453682402,6.377,1819.7,1819.6,5.49571334]
[1746453682692,15.08045284,1820.1,1819.7,5.49531183]
[1746453682894,18.199,1820.5,1819.4,5.49631746]
[1746453683094,1.8199,1820.4,1820.2,5.49370736]
[1746453683283,0.0411722,1820.4,1820.2,5.49372894]
[1746453683493,0.0411722,1820.4,1819.6,5.49571334]
[1746453683675,8.70345284,1820.3,1820.0,5.49426311]
[1746453683873,0.0411722,1820.2,1820.0,5.49426053]
[1746453684179,0.0411722,1820.2,1820.1,5.49420361]
[1746453684771,8.70345284,1820.4,1820.1,5.49420361]
[1746453684997,0.91151748,1820.3,1820.1,5.4939269]
[1746453685200,0.91151748,1820.3,1819.6,5.49569335]
[1746453685401,0.91151748,1820.3,1820.2,5.49390176]
[1746453685568,0.87034528,1820.3,1820.2,5.49390176]
[1746453685771,0.0411722,1820.4,1820.3,5.49359995]
[1746453686003,0.0411722,1820.6,1820.1,5.49394822]
[1746453686194,0.0411722,1820.6,1819.8,5.49510935]
[1746453686195,0.0411722,1820.6,1820.4,5.49316864]
[1746453686579,0.0411722,1820.6,1820.5,5.49299642]
[1746453686774,0.0411722,1820.6,1820.3,5.49345109]
[1746453687008,0.9156347,1820.6,1820.5,5.49299642]
[1746453687303,8.70345284,1821.2,1820.8,5.49209138]
[1746453687506,8.70345284,1821.2,1820.9,5.49174311]
[1746453687692,18.199,1821.3,1820.8,5.49209138]
[1746453687896,8.70345284,1821.2,1820.9,5.49169404]
[1746453688075,0.87034528,1821.1,1821.0,5.49126634]
[1746453688993,18.199,1821.3,1820.7,5.49213925]
[1746453689196,18.199,1821.3,1820.3,6.27183716]
[1746453689197,0.0411722,1821.2,1820.4,5.49329817]
[1746453689397,0.0411722,1821.2,1821.1,5.49118664]
[1746453689605,0.0411722,1821.2,1821.0,5.49129864]
[1746453689976,0.0411722,1821.2,1821.1,5.49118664]
[1746453690177,1.86518942,1821.2,1821.1,5.49118664]
[1746453690497,0.0411722,1821.2,1821.0,5.4912969]
[1746453690681,0.0411722,1821.3,1821.0,5.4913691]
[1746453690899,0.0411722,1821.3,1820.9,5.49160198]
[1746453691084,0.0411722,1821.3,1821.0,5.491312]
[1746453691285,0.0411722,1821.3,1821.2,5.49088513]
[1746453691500,0.4279603,1821.3,1821.0,5.4912991]
[1746453691686,8.70345284,1821.2,1820.8,5.49189461]
[1746453692028,14.1952631,1820.9,1820.3,5.49341277]
[1746453692177,0.0411722,1820.8,1820.4,5.49329689]
[1746453692376,8.70345284,1820.6,1820.3,5.49346594]
[1746453692624,0.91151748,1820.5,1820.4,5.49329817]
[1746453692827,0.0411722,1820.5,1820.4,5.49329817]
[1746453693179,3.0,1820.9,1820.7,5.49227241]
[1746453693578,8.70345284,1821.0,1820.8,5.49203485]
[1746453693811,8.70345284,1821.0,1820.8,5.49197489]
[1746453694013,8.70345284,1821.0,1820.7,5.49219996]
[1746453694215,8.70345284,1821.0,1820.6,5.49253087]
[1746453694216,0.87034528,1820.9,1820.6,5.49253087]
[1746453694383,0.87034528,1820.9,1820.7,5.49235657]
[1746453694577,6.36222816,1820.9,1820.5,5.49292371]
[1746453694905,8.49209445,1820.8,1820.3,5.4934278]
[1746453695099,8.49209445,1820.8,1820.0,5.49446391]
[1746453695100,0.89038165,1820.7,1820.0,5.49446391]
[1746453695290,0.0411722,1820.7,1819.8,30.05604021]
[1746453695488,0.0411722,1820.7,1820.3,5.49339156]
[1746453695704,8.74462504,1820.7,1820.3,5.49339156]
[1746453695881,8.74462504,1820.7,1820.1,5.49420361]
[1746453696075,8.74462504,1820.7,1820.4,5.49317488]
[1746453696377,0.8744625,1820.6,1819.9,5.49475136]
[1746453696701,0.0411722,1820.5,1820.3,5.49351416]
[1746453696876,8.70345284,1820.4,1819.7,5.49536965]
[1746453697076,8.70345284,1820.4,1819.4,0.7819]
[1746453697077,5.53485579,1820.3,1819.4,7.1529]
[1746453697282,14.19777049,1820.1,1819.7,5.49526671]
[1746453697480,0.0411722,1820.0,1819.6,5.49554434]
[1746453697719,0.0411722,1820.0,1819.2,5.49692172]
[1746453697916,0.45362013,1820.0,1819.7,5.49524702]
[1746453698117,3.9568795,1820.0,1819.5,5.49595205]
[1746453698287,3.9568795,1820.0,1819.5,5.49579125]
[1746453698489,3.9568795,1820.0,1819.5,5.49582133]
[1746453698689,3.9568795,1820.0,1819.6,5.49544821]
[1746453698928,3.9568795,1820.0,1819.5,5.49584352]
[1746453699129,11.70345284,1819.8,1819.4,5.49629164]
[1746453699333,0.0411722,1819.7,1819.4,5.49608376]
[1746453699622,0.0411722,1819.7,1819.6,5.49571334]
[1746453700425,0.0411722,1819.9,1819.8,5.49510935]
[1746453700817,0.0411722,1820.1,1819.9,5.49462555]
[1746453701002,0.0411722,1820.1,1820.0,5.49450549]
[1746453701207,0.54910107,1820.1,1819.9,10.98921088]
[1746453701415,0.54910107,1820.1,1819.9,5.49457483]
[1746453701725,0.54910107,1820.1,1820.0,5.49450549]
[1746453701891,0.0411722,1820.1,1819.9,5.4945323]
[1746453702092,0.45035624,1820.2,1820.0,5.4943624]
[1746453702330,0.38620782,1820.2,1820.1,5.49420361]
[1746453702504,0.54912511,1820.2,1820.1,5.49420361]
[1746453702694,0.50795291,1820.2,1820.1,5.49420361]
[1746453702895,0.0411722,1820.6,1820.3,5.49331614]
[1746453702896,3.0411722,1820.6,1820.3,5.49331614]
[1746453703144,8.70345284,1820.4,1819.2,0.7851]
[1746453703306,14.9069244,1820.3,1819.8,5.49483554]
[1746453703503,1.49069244,1820.2,1820.0,5.49434575]
[1746453703695,0.0411722,1820.1,1820.0,5.49434575]
[1746453704109,6.4131722,1820.3,1820.0,5.49436735]
[1746453704410,6.4131722,1820.3,1820.0,5.4943179]
[1746453704728,0.50820006,1820.2,1820.1,5.49408116]
[1746453705035,1.20033729,1820.2,1820.0,5.49429879]
[1746453705334,1.20033729,1820.2,1819.7,5.49537982]
[1746453705335,8.74462504,1820.1,1819.7,5.49525346]
[1746453705535,6.00285866,1820.0,1819.6,5.49557376]
[1746453705832,14.19871185,1819.8,1819.3,5.49634076]
[1746453706040,0.0411722,1819.7,1819.4,5.49631063]
[1746453706200,1.46516061,1819.7,1819.4,5.49631063]
[1746453706402,1.46516061,1819.7,1819.3,5.49634076]
[1746453706721,1.46516061,1819.7,1819.5,5.49599275]
[1746453706910,1.46516061,1819.7,1819.4,5.49614042]
[1746453707238,1.46516061,1819.7,1819.5,5.49577141]
[1746453707806,0.0411722,1819.7,1819.5,5.49577141]
[1746453708440,0.0411722,1819.7,1819.3,5.49644971]
[1746453708630,0.0411722,1819.7,1819.4,5.496124]
[1746453708833,5.53661916,1819.7,1819.4,5.496124]
[1746453709016,5.53661916,1819.7,1819.3,5.49642211]
[1746453709017,0.50877002,1819.6,1819.3,5.49642211]
[1746453709357,0.0411722,1819.5,1819.3,5.49639099]
[1746453709503,0.0411722,1819.5,1819.4,5.49631746]
[1746453709704,0.50877002,1819.6,1819.5,5.49601538]
[1746453709905,0.0411722,1819.8,1819.5,5.49601538]
[1746453710151,6.00660006,1819.7,1819.3,5.49648707]
[1746453710333,0.0411722,1819.6,1819.3,5.49648707]
[1746453710650,0.51106764,1819.5,1819.4,5.49631746]
[1746453711750,0.51106764,1819.5,1819.3,5.49648615]
[1746453711944,0.51106764,1819.5,1819.3,10.99300826]
[1746453712142,0.55223984,1819.4,1818.8,6.9668]
[1746453712350,0.55223984,1819.4,1819.3,5.49661957]
[1746453712516,0.51106764,1819.4,1819.3,5.49661957]
[1746453712855,0.51106764,1819.5,1819.4,5.49631746]
[1746453713164,0.0411722,1819.6,1819.5,5.49601538]
[1746453713312,0.0411722,1819.6,1819.1,5.49702237]
[1746453713313,5.53700812,1819.6,1819.1,5.49702237]
[1746453713516,6.04984405,1819.5,1819.1,5.49700701]
[1746453713744,5.49679957,1819.3,1818.8,5.49801046]
[1746453713932,5.4973271,1819.1,1818.7,5.49825429]
[1746453714259,5.53890617,1819.0,1818.6,5.49862338]
[1746453714459,6.05142581,1819.0,1818.6,5.49855836]
[1746453714623,1.7085593,1819.0,1818.8,5.49802753]
[1746453714817,0.0411722,1819.0,1818.9,5.49782835]
[1746453715017,14.75339656,1819.5,1819.1,5.49717397]
[1746453715349,0.51190774,1819.4,1818.7,5.49830504]
[1746453715552,3.51190774,1819.4,1819.2,5.49679903]
[1746453715853,0.51190774,1819.3,1819.1,5.49708745]
[1746453716064,0.51190774,1819.3,1819.0,5.49735683]
[1746453716227,0.51190774,1819.2,1818.6,0.7808]
[1746453716571,0.51190774,1819.2,1819.0,5.49738662]
[1746453716857,0.51190774,1819.1,1819.0,5.49738662]
[1746453718220,5.49430062,1820.1,1819.7,5.49520427]
[1746453718521,0.51171318,1820.0,1819.9,5.4948074]
[1746453719036,0.51166838,1820.0,1819.9,5.4948074]
[1746453720218,5.53389703,1820.6,1820.2,5.49365878]
[1746453720543,0.0411722,1820.6,1820.3,5.49330801]
[1746453720743,0.5122073,1820.5,1820.1,5.49417361]
[1746453720956,0.0411722,1820.4,1820.2,10.98756237]
[1746453721255,0.0411722,1820.4,1820.3,5.49359995]
[1746453721460,0.0411722,1820.4,1820.2,5.49368272]
[1746453721755,5.49311754,1820.5,1820.1,5.49405114]
[1746453721915,6.59654299,1820.4,1820.0,5.49430691]
[1746453722113,6.59654299,1820.4,1820.0,5.49427608]
[1746453722340,5.49379381,1820.3,1819.9,5.49471402]
[1746453722543,5.4942069,1820.1,1819.4,0.8022]
[1746453722782,6.04845118,1820.0,1819.6,5.49555426]
[1746453722981,2.32360271,1820.0,1819.6,5.49553903]
[1746453723198,2.32360271,1820.0,1819.7,5.49540993]
[1746453723199,0.51265633,1819.9,1819.7,5.49540993]
[1746453723398,0.0411722,1819.8,1819.7,5.49540993]
[1746453723564,0.55382853,1819.8,1819.7,5.49540993]
[1746453723942,0.51265633,1819.8,1819.7,5.49540993]
[1746453724852,0.51265633,1819.8,1819.4,0.8022]
[1746453725069,0.51265633,1819.7,1819.6,5.49556572]
[1746453726465,0.55382853,1819.7,1819.2,0.8219]
[1746453726673,0.0411722,1819.6,1819.3,5.49642742]
[1746453726846,0.64610088,1819.6,1819.2,5.49670866]
[1746453727051,0.51265633,1819.5,1819.2,5.49670866]
[1746453727263,0.0411722,1819.4,1819.2,5.49670866]
[1746453727460,0.51265633,1819.3,1819.2,5.49670866]
[1746453728083,0.51265633,1819.3,1819.0,5.49739281]
[1746453728384,5.49722834,1819.1,1818.5,0.8205]
[1746453728586,0.0411722,1819.0,1818.8,5.49809772]
[1746453728747,0.0411722,1819.0,1818.9,5.49782835]
[1746453729085,0.0411722,1819.2,1819.1,5.4970416]
[1746453729250,5.49704528,1819.2,1818.7,5.49814308]
[1746453729569,5.49704528,1819.2,1818.6,5.49863328]
[1746453729570,0.55507793,1819.1,1818.6,5.49863328]
[1746453729769,5.49763123,1819.0,1818.6,5.49863328]
[1746453729952,0.55507793,1818.9,1818.6,5.49863328]
[1746453730148,6.05299986,1818.9,1818.5,5.49891553]
[1746453730381,6.05299986,1818.9,1818.3,0.05498875]
[1746453730382,5.498284,1818.8,1818.4,5.49924592]
[1746453730707,5.49884655,1818.6,1818.2,5.49983328]
[1746453730898,0.0411722,1818.5,1818.2,5.49989005]
[1746453731047,0.55507793,1818.5,1818.3,5.49948622]
[1746453731411,0.0411722,1818.5,1818.3,5.49947535]
[1746453731589,5.54025709,1818.5,1818.1,11.00016333]
[1746453731767,0.0411722,1818.5,1818.2,5.49981356]
[1746453731949,0.0411722,1818.5,1817.9,0.7777]
[1746453732155,5.54011056,1818.6,1818.2,5.49980911]
[1746453732399,6.64398019,1818.6,1818.2,5.49980911]
[1746453732758,1.14504183,1818.6,1817.9,0.7777]
[1746453732954,5.49949849,1818.4,1817.8,5.50099266]
[1746453733158,0.0411722,1818.3,1817.9,5.50063086]
[1746453733359,0.0411722,1818.3,1817.9,5.50073683]
[1746453733566,0.0411722,1818.3,1818.1,5.50019136]
[1746453733787,0.0411722,1818.3,1818.2,5.499945]
[1746453733990,0.0411722,1818.4,1818.2,5.499945]
[1746453734188,0.0411722,1818.4,1818.2,5.49975441]
[1746453734405,0.0411722,1818.4,1818.0,5.50055005]
[1746453734609,3.0,1818.9,1818.0,1.15514247]
[1746453734758,3.0,1818.9,1818.6,5.49872705]
[1746453734960,3.0,1818.9,1818.5,5.49885612]
[1746453735161,8.49788104,1818.9,1818.5,5.49882309]
[1746453735408,8.49784796,1818.9,1818.5,5.49882309]
[1746453735575,0.8497848,1818.8,1818.5,5.49882309]
[1746453735968,0.8497848,1818.8,1818.6,5.49849357]
[1746453736165,18.19,1819.1,1818.9,5.49763035]
[1746453736492,5.941,1819.3,1819.1,5.49697256]
[1746453736672,0.0411722,1819.4,1819.3,5.49661957]
[1746453736871,5.9821722,1819.6,1819.3,5.49652288]
[1746453737262,5.9821722,1819.6,1819.3,5.49642476]
[1746453737465,0.0411722,1819.6,1819.1,5.4972239]
[1746453737690,0.0411722,1819.7,1819.4,5.49619358]
[1746453737887,0.0411722,1819.7,1819.6,5.49571334]
[1746453738087,0.0411722,1819.7,1819.5,5.49598473]
[1746453738088,0.0411722,1819.7,1819.5,5.49593639]
[1746453738775,0.0411722,1819.7,1819.1,5.49693662]
[1746453738974,5.49604776,1819.5,1819.1,5.49693662]
[1746453739278,0.0411722,1819.4,1819.3,5.49661957]
[1746453739582,0.0411722,1819.6,1819.4,5.49619706]
[1746453739779,0.0411722,1819.6,1819.5,5.49601538]
[1746453739996,5.49452703,1820.0,1819.6,5.49555956]
[1746453740175,5.49523796,1819.8,1819.4,5.49621688]
[1746453740374,0.0411722,1819.7,1819.6,5.49571334]
[1746453740570,0.0411722,1819.9,1819.7,5.49529274]
[1746453740766,18.192,1820.3,1820.0,5.49424201]
[1746453740970,18.192,1820.3,1819.7,6.31599647]
[1746453740971,0.0411722,1820.2,1820.1,5.49420361]
[1746453741380,1.86448942,1820.2,1819.2,5.49666909]
[1746453741709,5.49450549,1820.0,1819.4,0.8208]
[1746453742011,5.53600663,1819.9,1819.5,5.49576316]
[1746453742216,5.53600663,1819.9,1819.5,10.99159761]
[1746453742388,5.53600663,1819.9,1819.5,10.99159496]
[1746453742725,6.04872218,1819.8,1819.4,5.49623341]
[1746453743009,6.04872218,1819.8,1819.4,5.49629138]
[1746453743010,0.0411722,1819.7,1819.4,5.49629138]
[1746453743197,0.0411722,1819.7,1819.2,5.49691269]
[1746453743379,0.0411722,1819.7,1819.6,5.49571334]
[1746453743578,12.32012434,1820.0,1819.4,5.49615817]
[1746453743579,0.0411722,1819.9,1819.4,5.49615817]
[1746453743773,5.49525733,1819.8,1819.4,5.49615817]
[1746453743987,0.0411722,1819.7,1819.4,5.49615817]
[1746453744183,6.42129654,1819.7,1819.0,5.94]
[1746453744387,11.91686337,1819.7,1819.1,5.49699128]
[1746453744720,17.81572251,1819.7,1819.3,5.49661088]
[1746453744935,1.78157225,1819.6,1819.3,5.496384]
[1746453745138,0.0411722,1819.5,1819.3,5.496384]
[1746453745428,17.81572251,1819.7,1819.4,5.49631746]
[1746453745429,5.94,1819.7,1819.4,5.49631746]
[1746453745583,0.0411722,1819.6,1819.4,5.49631746]
[1746453745785,5.5370962,1819.6,1819.1,5.49717161]
[1746453746047,5.49664687,1819.3,1818.8,5.49804916]
[1746453746230,0.0411722,1819.2,1819.0,5.49744792]
[1746453746799,0.0411722,1819.2,1818.9,5.49752919]
[1746453747004,5.53823897,1819.2,1818.8,5.49801218]
[1746453747203,5.49763048,1819.0,1818.6,5.49861605]
[1746453747428,0.59093525,1818.9,1818.6,5.49853226]
[1746453747613,0.59093525,1818.9,1818.7,5.49832143]
[1746453747818,0.0411722,1818.9,1818.7,5.49832143]
[1746453748014,0.0411722,1818.9,1818.6,5.49851526]
[1746453748216,0.0411722,1818.9,1818.8,5.49813063]
[1746453748524,0.0411722,1819.0,1818.8,5.49791376]
[1746453748730,0.0411722,1819.0,1818.9,5.49782835]
[1746453749454,0.0411722,1819.1,1818.7,5.49826373]
[1746453749753,5.49773308,1819.0,1818.6,5.49869925]
[1746453750052,5.49814778,1818.8,1818.4,5.49917726]
[1746453750216,5.49892099,1818.6,1817.9,0.7794]
[1746453750411,5.9811722,1818.7,1817.9,0.7794]
[1746453750412,5.49936768,1818.4,1817.9,0.7794]
[1746453750626,5.50005862,1818.2,1817.8,5.5010209]
[1746453750829,5.50080715,1818.0,1817.4,0.8201]
[1746453751029,0.0411722,1817.9,1817.5,11.00363406]
[1746453751320,5.54219554,1817.9,1817.5,5.50182967]
[1746453751536,5.54221365,1817.9,1817.5,5.50202133]
[1746453751743,6.6464515,1817.9,1817.5,5.50194552]
[1746453751913,12.14755841,1817.9,1817.5,5.50194552]
[1746453752115,12.14755841,1817.9,1817.2,6.32304844]
[1746453752116,5.50138159,1817.8,1817.3,5.50251707]
[1746453752326,0.0411722,1817.7,1817.3,5.50245455]
[1746453752535,0.0411722,1817.7,1817.4,5.50219899]
[1746453752862,5.9821722,1817.7,1816.9,12.21346183]
[1746453753020,7.13050605,1817.7,1817.4,5.5022228]
[1746453753226,7.13050605,1817.7,1817.5,5.50205811]
[1746453753426,5.9821722,1817.7,1817.4,5.50218835]
[1746453753952,5.9821722,1817.7,1817.4,5.50217489]
[1746453754160,5.9821722,1817.7,1817.3,5.5025108]
[1746453754355,5.9821722,1817.7,1817.3,5.50242898]
[1746453754660,11.48379352,1817.7,1817.3,5.50266212]
[1746453754828,7.63950856,1817.7,1817.3,5.50245539]
[1746453755157,7.68068076,1817.7,1817.4,5.50220059]
[1746453755355,5.9821722,1817.7,1817.4,5.5021432]
[1746453755555,5.9821722,1817.7,1817.5,5.50196298]
[1746453755762,5.9831722,1817.9,1817.6,5.50155607]
[1746453756131,5.9831722,1817.9,1817.2,5.50269224]
[1746453756132,5.9831722,1817.9,1817.7,5.50116148]
[1746453756350,5.9831722,1817.9,1817.8,5.50115524]
[1746453756521,0.0411722,1817.9,1817.8,5.50115524]
[1746453756725,5.9831722,1818.1,1817.9,5.50082708]
[1746453756924,0.0411722,1818.1,1817.9,5.5008488]
[1746453757145,0.0411722,1818.2,1818.1,5.50021418]
[1746453757363,11.44096628,1818.9,1818.4,5.49923421]
[1746453757543,5.49876017,1818.6,1818.2,5.49978003]
[1746453757743,5.49876017,1818.6,1818.2,5.49972925]
[1746453758263,5.49864086,1818.7,1818.3,5.49942955]
[1746453758459,5.49973734,1818.3,1817.9,5.50072336]
[1746453758664,5.50004441,1818.2,1817.8,5.50098952]
[1746453759065,5.50078436,1818.0,1817.5,5.50187855]
[1746453759231,0.0411722,1817.9,1817.3,11.00500149]
[1746453759427,5.9841722,1817.9,1817.2,0.785]
[1746453759625,6.09959964,1817.8,1817.3,5.50249825]
[1746453759852,5.54263233,1817.7,1817.3,5.50247085]
[1746453760059,0.0411722,1817.7,1817.3,5.50246359]
[1746453760257,0.0411722,1817.7,1817.5,5.50202258]
[1746453760473,0.0411722,1817.7,1817.6,5.50176056]
[1746453760843,0.0411722,1817.8,1817.7,5.50132891]
[1746453761043,0.0411722,1817.9,1817.7,11.00259373]
[1746453761346,0.0411722,1817.9,1817.8,5.50115524]
[1746453761551,0.0411722,1818.0,1817.9,5.50085263]
[1746453761761,5.944,1818.1,1817.9,5.50085263]
[1746453761957,5.944,1818.1,1817.8,5.50102441]
[1746453762271,0.0411722,1818.0,1817.9,5.50074696]
[1746453762470,5.944,1818.1,1818.0,5.50055005]
[1746453762639,0.0411722,1818.2,1818.0,5.50055005]
[1746453762977,5.50028614,1818.1,1817.7,5.50133357]
[1746453763181,5.50101446,1817.9,1817.5,5.50189205]
[1746453763490,0.0411722,1817.8,1817.7,5.50145788]
[1746453763650,0.0411722,1817.9,1817.7,5.50145788]
[1746453764071,0.0411722,1817.9,1817.6,5.50159439]
[1746453764236,0.0411722,1817.9,1817.7,5.50135721]
[1746453764641,0.0411722,1818.0,1817.2,6.32076662]
[1746453764853,1.51108269,1818.0,1817.9,5.50085263]
[1746453765146,0.0411722,1818.0,1817.8,11.00198201]
[1746453765356,0.0411722,1818.0,1817.8,5.50094634]
[1746453765753,0.0411722,1818.0,1817.9,5.50085263]
[1746453765937,0.0411722,1818.1,1818.0,5.50055005]
[1746453766137,0.0411722,1818.1,1817.9,5.50055441]
[1746453766492,0.0411722,1818.1,1818.0,5.50055005]
[1746453766691,0.0411722,1818.2,1818.0,5.50055005]
[1746453766894,1.93505009,1818.2,1818.0,5.50051543]
[1746453767192,1.93505009,1818.2,1817.9,5.50066655]
[1746453767574,1.93505009,1818.2,1817.9,11.00136812]
[1746453767772,1.93505009,1818.2,1818.0,5.5005453]
[1746453767974,0.0411722,1818.2,1818.1,5.50024751]
[1746453768174,11.27120931,1818.8,1818.0,6.25520444]
[1746453768489,5.49964252,1818.3,1817.8,5.50091749]
[1746453768651,0.0411722,1818.2,1817.8,5.50091749]
[1746453768856,0.0411722,1818.2,1817.9,5.50068049]
[1746453768857,1.17255367,1818.2,1817.9,5.50068049]
[1746453769055,0.0411722,1818.2,1817.9,5.50068049]
[1746453769260,0.0411722,1818.2,1817.7,5.5012775]
[1746453769458,5.54125147,1818.2,1817.8,5.50100171]
[1746453770173,3.0411722,1818.2,1818.0,5.5005406]
[1746453770374,3.0411722,1818.2,1817.9,5.50067319]
[1746453770571,3.0411722,1818.2,1818.0,5.50051757]
[1746453770775,3.0411722,1818.2,1817.8,5.50108044]
[1746453770964,0.0411722,1818.2,1818.0,5.50040078]
[1746453771295,0.0411722,1818.2,1818.1,5.50024751]
[1746453771471,5.54010439,1818.6,1818.2,5.49990569]
[1746453771671,5.54010439,1818.6,1818.0,5.50055005]
[1746453771895,6.43142661,1818.6,1818.3,5.499574]
[1746453772099,6.43142661,1818.6,1818.4,5.49911828]
[1746453772436,17.66155079,1818.8,1818.4,5.49911828]
[1746453772726,20.27750042,1818.8,1818.4,5.49911828]
[1746453773021,25.77588731,1818.8,1818.4,5.49911828]
[1746453773198,20.27750042,1818.8,1818.4,5.49911828]
[1746453773394,20.27750042,1818.8,1818.4,10.99827186]
[1746453773592,20.27750042,1818.8,1818.0,5.50055005]
[1746453773795,12.16325441,1818.8,1818.4,5.49929511]
[1746453774025,6.04732818,1819.1,1818.4,0.76]
[1746453774026,6.39025441,1819.1,1818.4,0.76]
[1746453774189,5.49769137,1819.0,1818.4,0.76]
[1746453774389,11.88768409,1819.1,1818.5,5.49892408]
[1746453774617,11.88768409,1819.1,1818.5,10.99774517]
[1746453774818,5.773,1819.2,1818.7,5.49815459]
[1746453775189,18.201,1819.3,1818.9,0.8053]
[1746453775591,5.772,1819.5,1819.0,5.49742739]
[1746453775827,5.49643379,1819.4,1818.9,0.8053]
[1746453776038,0.55,1819.3,1818.6,0.05497267]
[1746453776203,8.49931217,1818.5,1818.0,0.8053]
[1746453776401,0.05497267,1818.4,1818.0,0.8053]
[1746453776723,0.05497267,1818.4,1818.0,6.30583952]
[1746453776926,0.05497267,1818.4,1818.0,0.8053]
[1746453777403,5.49935087,1818.4,1818.0,0.8053]
[1746453777605,0.05497267,1818.3,1818.0,0.8053]
[1746453778133,0.05497267,1818.4,1818.2,5.499945]
[1746453778421,8.5537816,1818.6,1818.1,5.50005229]
[1746453778638,5.55389988,1818.6,1818.1,5.50005229]
[1746453778791,5.55391324,1818.6,1818.0,7.48631429]
[1746453778987,5.55391324,1818.6,1818.1,5.50024293]
[1746453779186,11.05291113,1818.6,1818.1,5.50024293]
[1746453779427,1.73746378,1818.6,1818.1,5.50001979]
[1746453779627,5.55383606,1818.6,1818.1,5.50010809]
[1746453779929,5.55383606,1818.6,1818.2,5.49977543]
[1746453779930,0.51384708,1818.5,1818.2,5.49977543]
[1746453780236,5.55453669,1818.4,1818.0,0.8053]
[1746453780399,5.49995225,1818.2,1817.8,5.50089426]
[1746453780595,0.05497267,1818.1,1817.7,12.05947611]
[1746453780795,5.50066246,1818.0,1817.7,0.7862]
[1746453781018,0.56881975,1817.9,1817.5,6.2880753]
[1746453781430,0.51384708,1817.8,1817.5,6.28804672]
[1746453781732,0.51384708,1817.8,1817.6,5.5015347]
[1746453781933,0.05497267,1818.0,1817.6,5.50176056]
[1746453782133,0.05497267,1818.3,1817.9,5.50068887]
[1746453782338,0.5139159,1818.2,1817.9,0.7952]
[1746453782835,0.56888857,1818.1,1817.6,6.29690403]
[1746453783035,5.50109831,1817.9,1817.6,0.7952]
[1746453783234,0.05497267,1817.8,1817.4,0.8213]
[1746453783439,0.5139159,1817.8,1817.4,6.32351255]
[1746453783655,0.56888857,1817.8,1817.4,6.32351255]
[1746453783809,0.5139159,1817.7,1817.4,6.37847693]
[1746453784006,0.5139159,1817.7,1817.5,5.50191712]
[1746453784345,0.5139159,1817.6,1817.4,6.32348724]
[1746453784529,0.5139159,1817.6,1817.5,5.50206327]
[1746453784727,0.5139159,1817.6,1817.5,1.18255505]
[1746453784930,0.5139159,1817.6,1817.5,7.47681832]
[1746453785332,0.56888857,1818.2,1817.6,5.50156769]
[1746453785535,0.56888857,1818.2,1817.7,5.50116138]
[1746453785536,0.5139159,1818.1,1817.7,5.50116138]
[1746453786047,0.5139159,1818.1,1817.7,5.50125272]
[1746453786210,0.5139159,1818.0,1817.7,5.50125272]
[1746453786418,0.5139159,1817.9,1817.6,5.50166676]
[1746453786719,0.5139159,1817.9,1817.5,6.29407462]
[1746453786933,0.56888857,1817.8,1817.6,5.50175309]
[1746453787130,0.05497267,1818.0,1817.7,5.50145788]
[1746453787334,0.05497267,1818.1,1817.8,5.50088142]
[1746453787547,0.51429912,1818.0,1817.9,5.50085263]
[1746453787929,0.51429912,1818.0,1817.9,6.32035263]
[1746453788126,0.51429912,1818.0,1817.9,7.50247604]
[1746453789157,0.51429912,1818.0,1817.8,5.50089147]
[1746453789362,0.51429912,1818.0,1817.6,0.8115]
[1746453789547,0.05497267,1817.9,1817.7,5.50136606]
[1746453789859,0.51429912,1817.8,1817.7,5.50136606]
[1746453790250,0.51429912,1817.8,1817.7,5.50145788]
[1746453790427,0.51429912,1817.8,1817.6,5.50157806]
[1746453790832,0.05497267,1818.0,1817.7,5.50145788]
[1746453791057,0.05497267,1818.0,1817.6,5.50157806]
[1746453791058,0.05497267,1818.0,1817.6,5.50157798]
[1746453791262,0.51450445,1817.9,1817.6,5.50157798]
[1746453791561,0.51450445,1817.8,1817.7,5.50125328]
[1746453792148,0.51450445,1817.8,1817.6,5.50161745]
[1746453792347,0.51450445,1817.8,1817.4,6.32332735]
[1746453792348,6.01577585,1817.8,1817.4,6.32316495]
[1746453792554,0.05497267,1817.7,1817.4,6.32316495]
[1746453792763,0.56947712,1817.7,1817.4,11.8253046]
[1746453793060,0.51450445,1817.6,1817.4,6.32313965]
[1746453793262,0.51450445,1817.6,1817.4,5.50213965]
[1746453793450,0.51450445,1817.5,1817.3,5.50249179]
[1746453793653,0.51450445,1817.5,1817.3,5.50240615]
[1746453793833,0.51450445,1817.4,1817.3,5.50240615]
[1746453794037,0.51450445,1817.4,1817.2,5.50282513]
[1746453794366,0.67075484,1817.7,1817.0,0.8311]
[1746453794367,0.51450445,1817.3,1817.0,0.8311]
[1746453794544,0.51450445,1817.3,1817.1,5.50313552]
[1746453794973,9.38778217,1817.7,1817.3,5.50259584]
[1746453795268,12.51192027,1817.6,1817.2,5.50281425]
[1746453795455,5.50215835,1817.5,1817.1,5.50311533]
[1746453795659,0.56936652,1817.4,1817.2,5.50293447]
[1746453795853,0.56936652,1817.4,1817.2,5.50274133]
[1746453796060,0.51439385,1817.4,1817.3,5.50266879]
[1746453796280,0.05497267,1817.6,1817.3,11.00515438]
[1746453796456,0.51408078,1817.5,1817.3,5.50248559]
[1746453796637,0.51408078,1817.5,1817.2,5.50293241]
[1746453796837,0.05497267,1817.4,1817.1,5.50305473]
[1746453797059,0.51408078,1817.4,1817.2,5.5027543]
[1746453797261,0.51408078,1817.4,1817.3,5.50266879]
[1746453798603,0.51408078,1817.4,1817.2,5.50275231]
[1746453799160,6.3959682,1817.7,1817.3,0.05502808]
[1746453799362,11.8974278,1817.7,1817.4,5.50222925]
[1746453799562,0.51370932,1817.6,1817.5,5.50206327]